Workbook

Sheet Historico
B3: PREFEITURA MUNICIPAL DE CHAPECO
B5: HISTÓRICO DA TARIFA
B7: DATA | D7: TARIFA | H7: VARIAÇÃO
B8: Inicial | C8: Final | D8: ÚNICA | E8: Antecipada | F8: Embarcada | G8: Estudante
B10: 2005-02-22 | C10: 2006-01-23 | E10: 1.5 | F10: 1.7 | G10: 0.75
B11: =+C10+1 -> 2006-01-24 | C11: 2006-12-28 | D11: 1.7 | G11: 0.85 | K11: =+G11/G10-1 -> 0.1333333333
B12: =+C11+1 -> 2006-12-29 | C12: 2008-01-17 | D12: 1.8 | G12: 0.9 | H12: =+D12/D11-1 -> 0.05882352941 | K12: 0.05882352941
B13: =+C12+1 -> 2008-01-18 | C13: 2009-01-07 | D13: 1.9 | G13: 0.95 | H13: =+D13/D12-1 -> 0.05555555556 | K13: 0.05555555556
B14: =+C13+1 -> 2009-01-08 | C14: 2010-03-03 | E14: 2.03 | F14: 2.1 | G14: 1 | K14: 0.05263157895
B15: =+C14+1 -> 2010-03-04 | C15: 2011-01-07 | E15: 2.03 | F15: 2.3 | G15: 1 | I15: =+E15/E14-1 -> 0 | J15: =+F15/F14-1 -> 0.09523809524 | K15: 0
B16: 2012-10-01 | C16: ATUAL | E16: 2.2 | F16: 2.5 | G16: 1.1 | I16: =+E16/E15-1 -> 0.08374384236 | J16: =+F16/F15-1 -> 0.08695652174 | K16: 0.1
C17: VARIAÇÃO | E17: =+E16/E10-1 -> 0.4666666667 | F17: =+F16/F10-1 -> 0.4705882353 | G17: =+G16/G10-1 -> 0.4666666667
B19: Mês | C19: 2005 | D19: =+C19+1 -> 2006 | E19: =+D19+1 -> 2007 | F19: 2008 | G19: 2009 | H19: =+G19+1 -> 2010 | I19: 2011 | J19: 2012 | K19: 2013
B20: Janeiro | C20: 0.0086 | D20: 0.004 | E20: 0.0062 | F20: 0.0097 | G20: 0.0029 | H20: 0.0024 | I20: 0.006 | J20: 0.0051 | K20: 0.0074 | N20: =(1+C20)-1 -> 0.0086 | O20: 0.004 | P20: 0.0062 | Q20: 0.0097 | R20: 0.0029 | S20: 0.0024 | T20: 0.006 | U20: 0.0051 | V20: 0.0074
B21: Fevereiro | C21: 0.0057 | D21: 0.0038 | E21: 0.0049 | F21: 0.0069 | G21: 0.0064 | H21: 0.0088 | I21: 0.0094 | J21: 0.0051 | K21: 0.0092 | N21: =(1+C21)*(1+N20)-1 -> 0.01434902 | O21: 0.0078152 | P21: 0.01113038 | Q21: 0.01666693 | R21: 0.00931856 | S21: 0.01122112 | T21: 0.0154564 | U21: 0.01022601 | V21: 0.01666808
B22: Março | C22: 0.0044 | D22: 0.0023 | E22: 0.0042 | F22: 0.0048 | G22: 0.0031 | H22: 0.007 | I22: 0.0054 | J22: 0.0039 | K22: 0.0052 | N22: =(1+C22)*(1+N21)-1 -> 0.01881215569 | O22: 0.01013317496 | P22: 0.0153771276 | Q22: 0.02154693126 | R22: 0.01244744754 | S22: 0.01829966784 | T22: 0.02093986456 | U22: 0.01416589144 | V22: 0.02195475402
B23: Abril | C23: 0.0073 | D23: 0.0027 | E23: 0.0044 | F23: 0.0051 | G23: 0.002 | H23: 0.0071 | I23: 0.0066 | J23: 0.0018 | K23: 0.006 | N23: 0.02624948442 | O23: 0.01286053453 | P23: 0.01984478696 | Q23: 0.02675682061 | R23: 0.01447234243 | S23: 0.02552959548 | T23: 0.02767806767 | U23: 0.01599139004 | V23: 0.02808648254
B24: Maio | C24: 0.0091 | D24: 0.0012 | E24: 0.0026 | F24: 0.0064 | G24: 0.0055 | H24: 0.0073 | I24: 0.0072 | J24: 0.0064 | K24: 0.0059 | N24: 0.03558835473 | O24: 0.01407596717 | P24: 0.0224963834 | Q24: 0.03332806427 | R24: 0.02005194031 | S24: 0.03301596153 | T24: 0.03507734975 | U24: 0.02249373494 | V24: 0.03415219279
B25: Junho | C25: 0.007 | D25: 0.0013 | E25: 0.0026 | F25: 0.0096 | G25: 0.006 | H25: 0.0043 | I25: 0.0057 | J25: 0.0055 | K25: 0.0035 | N25: 0.04283747322 | O25: 0.01539426593 | P25: 0.025154874 | Q25: 0.04324801368 | R25: 0.02617225196 | S25: 0.03745793016 | T25: 0.04097729065 | U25: 0.02811745048 | V25: 0.03777172546
B26: Julho | C26: -0.0011 | D26: -0.0007 | E26: 0.0031 | F26: 0.0091 | G26: 0.0042 | H26: -0.0011 | I26: 0.0022 | J26: 0.0026 | K26: 0 | N26: 0.041690352 | O26: 0.01468348995 | P26: 0.02833285411 | Q26: 0.05274157061 | R26: 0.03048217541 | S26: 0.03631672644 | T26: 0.04326744069 | U26: 0.03079055585 | V26: 0.03777172546
B27: Agosto | C27: 0.0003 | D27: 0.0011 | E27: 0.0032 | F27: 0.0058 | G27: 0.0023 | H27: -0.0007 | I27: 0 | J27: 0.0043 | K27: 0 | N27: 0.0420028591 | O27: 0.01579964178 | P27: 0.03162351924 | Q27: 0.05884747172 | R27: 0.03285228442 | S27: 0.03559130473 | T27: 0.04326744069 | U27: 0.03522295524 | V27: 0.03777172546
B28: Setembro | C28: 0 | D28: -0.0002 | E28: 0.0059 | F28: 0.0021 | G28: 0.0008 | H28: -0.0007 | I28: 0.0042 | J28: 0.0045 | K28: 0 | N28: 0.0420028591 | O28: 0.01559648186 | P28: 0.03771009801 | Q28: 0.06107105141 | R28: 0.03367856625 | S28: 0.03486639082 | T28: 0.04764916394 | U28: 0.03988145854 | V28: 0.03777172546
B29: Outubro | C29: 0.0015 | D29: 0.0016 | E29: 0.0025 | F29: 0.0015 | G29: 0.0016 | H29: 0.0054 | I29: 0.0045 | J29: 0.0063 | K29: 0 | N29: 0.04356586339 | O29: 0.01722143623 | P29: 0.04030437325 | Q29: 0.06266265798 | R29: 0.03533245195 | S29: 0.04045466933 | T29: 0.05236358517 | U29: 0.04643271173 | V29: 0.03777172546
B30: Novembro | C30: 0.0058 | D30: 0.0043 | E30: 0.003 | F30: 0.005 | G30: 0.0024 | H30: 0.0092 | I30: 0.0032 | J30: 0.0071 | K30: 0 | N30: 0.0496185454 | O30: 0.0215954884 | P30: 0.04342528637 | Q30: 0.06797597127 | R30: 0.03781724984 | S30: 0.05002685229 | T30: 0.05573114865 | U30: 0.05386238398 | V30: 0.03777172546
B31: Dezembro | C31: 0.0054 | D31: 0.0042 | E31: 0.0043 | F31: 0.0038 | G31: 0.0037 | H31: 0.0103 | I31: 0.0057 | J31: 0.0054 | K31: 0 | N31: =(1+C31)*(1+N30)-1 -> 0.05528648554 | O31: 0.02588618945 | P31: 0.0479120151 | Q31: 0.07203427996 | R31: 0.04165717366 | S31: 0.06084212887 | T31: 0.06174881619 | U31: 0.05955324086 | V31: 0.03777172546
B33: Variação Anual | C33: =(1+C31)*(1+N30)-1 -> 0.05528648554 | D33: 0.02588618945 | E33: 0.0479120151 | F33: 0.07203427996 | G33: 0.04165717366 | H33: 0.06084212887 | I33: 0.06174881619 | J33: 0.05955324086 | K33: 0.03777172546
B35: % Acumulada | C35: =(1+C33)*(1+N32)-1 -> 0.05528648554 | D35: =(1+C35)*(1+D33)-1 -> 0.08260383144 | E35: =(1+D35)*(1+E33)-1 -> 0.1344735626 | F35: 0.2161945488 | G35: 0.2668577763 | H35: 0.3439361004 | I35: 0.4269225636 | J35: 0.5119004267 | K35: 0.5690075146

Sheet D_PASS
C1: 666666666
B2: PREFEITURA MUNICIPAL DE CHAPECO
B3: CONTROLADORIA GERAL DO MUNICIPIO
B5: SISTEMA DE TRANSPORTE COLETIVO URBANO DE CHAPECÓ
B7: PASSAGEIROS TRANSPORTADOS
B9: Período/Mês | C9: Passageiros Pagantes | O9: QUILOMETRAGEM
C10: Antecipado | E10: Embarcado | G10: Estudante | I10: Vale Transporte | K10: Soma | L10: Passag. Equival. | M10: Gratuid | N10: Passag. Transport | O10: Km Program | P10: Km Ocioso | S10: KM Total | T10: KM Médial | U10: IPK mês | V10: IPK média | X10: S
B11: (a) | C11: (b) | D11: (c) | E11: (d) | F11: (e) | G11: (f) | H11: (g) | I11: (h) | J11: (i) | K11: (j) | L11: (k) | M11: (l) | N11: (m) | O11: (n) | P11: (o) | Q11: (p) | R11: (q) | S11: (r) | T11: (s) | U11: (t) | V11: (u) | X11: (t)
B13: AUTO VIAÇÃO CHAPECO
B15: 2009-07-31
B16: 2009-08-31
B17: 2009-09-30
B18: 2009-10-31
B19: 2009-11-30
B20: 2009-12-31 | C20: 274584 | D20: 2.03 | E20: 88665 | F20: 2.3 | G20: 64075 | H20: 1 | I20: 359475 | J20: 2.03 | K20: 786799 | L20: 766080.9212 | M20: 100793 | N20: 887592 | O20: 324729.4 | P20: 16236 | Q20: 0.05 | R20: 0.04999855264 | S20: 340965.4 | T20: 340965.4 | U20: 2.2468 | V20: 2.2468 | X20: 1
B21: 2010-01-31 | C21: 83998 | D21: 2.03 | E21: 230840 | F21: 2.3 | G21: 2492 | H21: 1 | I21: 319984 | J21: 2.03 | K21: 637314 | L21: 666752.4433 | M21: 69576 | N21: 706890 | O21: 293056.3 | P21: 14653 | Q21: 0.05 | R21: 0.05000063128 | S21: 307709.3 | T21: 324337.35 | U21: 2.1668 | V21: 2.2089 | X21: 1
B22: 2010-02-28 | C22: 71265 | D22: 2.03 | E22: 206546 | F22: 2.3 | G22: 35689 | H22: 1 | I22: 272840 | J22: 2.03 | K22: 586340 | L22: 595703.4236 | M22: 65838 | N22: 652178 | O22: 284151.3 | P22: 14208 | Q22: 0.05 | R22: 0.05000153087 | S22: 298359.3 | T22: 315678 | U22: 1.9966 | V22: 2.142 | X22: 1
B23: 2010-03-31 | C23: 121814 | D23: 2.03 | E23: 244148 | F23: 2.3 | G23: 149419 | H23: 1 | I23: 391291 | J23: 2.03 | K23: 906672 | L23: 863331.3054 | M23: 121739 | N23: 1028411 | O23: 338954.6 | P23: 16948 | Q23: 0.05 | R23: 0.05000079657 | S23: 355902.6 | T23: 325734.15 | U23: 2.4258 | V23: 2.2195 | X23: 1
B24: 2010-04-30 | C24: 113107 | D24: 2.03 | E24: 206508 | F24: 2.3 | G24: 134204 | H24: 1 | I24: 356390 | J24: 2.03 | K24: 810209 | L24: 769581.9261 | M24: 108584 | N24: 918793 | O24: 311440.7 | P24: 15572 | Q24: 0.05 | R24: 0.04999988762 | S24: 327012.7 | T24: 325989.86 | U24: 2.3534 | V24: 2.2464 | X24: 1
B25: 2010-05-31 | C25: 119188 | D25: 2.03 | E25: 212984 | F25: 2.3 | G25: 145197 | H25: 1 | I25: 381363 | J25: 2.03 | K25: 858732 | L25: 813388.5369 | M25: 109896 | N25: 968628 | O25: 325026.4 | P25: 16251 | Q25: 0.05 | R25: 0.04999901546 | S25: 341277.4 | T25: 328537.7833 | U25: 2.3834 | V25: 2.2701 | X25: 1
B26: 2010-06-30 | C26: 117715 | D26: 2.03 | E26: 202987 | F26: 2.3 | G26: 136514 | H26: 1 | I26: 372332 | J26: 2.03 | K26: 829548 | L26: 787280.5468 | M26: 111380 | N26: 940928 | O26: 317712 | P26: 15886 | Q26: 0.05 | R26: 0.050001259 | S26: 333598 | T26: 329260.6714 | U26: 2.36 | V26: 2.2831 | X26: 1
B27: 2010-07-31 | C27: 122252 | D27: 2.03 | E27: 211052 | F27: 2.3 | G27: 84882 | H27: 1 | I27: 383025 | J27: 2.03 | K27: 801211 | L27: 786213.7488 | M27: 103473 | N27: 904684 | O27: 328781.1 | P27: 16439 | Q27: 0.05 | R27: 0.04999983272 | S27: 345220.1 | T27: 331255.6 | U27: 2.2774 | V27: 2.2824 | X27: 1
B28: 2010-08-31 | C28: 118771 | D28: 2.03 | E28: 217312 | F28: 2.3 | G28: 135095 | H28: 1 | I28: 373777 | J28: 2.03 | K28: 844955 | L28: 805312.8276 | M28: 111324 | N28: 956279 | O28: 323966.11 | P28: 16198 | Q28: 0.05 | R28: 0.049999057 | S28: 340164.11 | T28: 332245.4344 | U28: 2.3674 | V28: 2.292 | X28: 1
B29: 2010-09-30 | C29: 115997 | D29: 2.03 | E29: 211995 | F29: 2.3 | G29: 138424 | H29: 1 | I29: 370783 | J29: 2.03 | K29: 837199 | L29: 795160.5419 | M29: 113486 | N29: 950685 | O29: 322640 | P29: 16132 | Q29: 0.05 | R29: 0.05 | S29: 338772 | T29: 332898.091 | U29: 2.3472 | V29: 2.2976 | X29: 1
B30: 2010-10-31 | C30: 111756 | D30: 2.03 | E30: 211401 | F30: 2.3 | G30: 130119 | H30: 1 | I30: 362244 | J30: 2.03 | K30: 815520 | L30: 777616.4039 | M30: 110715 | N30: 926235 | O30: 317752.5 | P30: 15888 | Q30: 0.05 | R30: 0.05000118016 | S30: 333640.5 | T30: 332965.5827 | U30: 2.3307 | V30: 2.3007 | X30: 1
B31: 2010-11-30 | C31: 110343 | D31: 2.03 | E31: 209761 | F31: 2.3 | G31: 133725 | H31: 1 | I31: 360129 | J31: 2.03 | K31: 813958 | L31: 774006.6305 | M31: 113670 | N31: 927628 | O31: 306854.8 | P31: 15343 | Q31: 0.05 | R31: 0.05000084731 | S31: 322197.8 | T31: 332068.2675 | U31: 2.4023 | V31: 2.3089 | X31: 1
B32: 2010-12-31 | D32: 2.03 | F32: 2.3 | H32: 1 | J32: 2.03 | K32: 0 | L32: 0 | N32: 0 | R32: 0 | S32: 0 | T32: 0 | U32: 0 | V32: 0 | X32: 0
B33: 2011-01-31 | D33: 2.03 | F33: 2.3 | H33: 1 | J33: 2.03 | K33: 0 | L33: 0 | N33: 0 | R33: 0 | S33: 0 | T33: 0 | U33: 0 | V33: 0 | X33: 0
B34: 2011-02-28 | D34: 2.03 | F34: 2.3 | H34: 1 | J34: 2.03 | K34: 0 | L34: 0 | N34: 0 | R34: 0 | S34: 0 | T34: 0 | U34: 0 | V34: 0 | X34: 0
B35: 2011-03-31 | D35: 2.03 | F35: 2.3 | H35: 1 | J35: 2.03 | K35: 0 | L35: 0 | N35: 0 | R35: 0 | S35: 0 | T35: 0 | U35: 0 | V35: 0 | X35: 0
B36: 2011-04-30 | D36: 2.03 | F36: 2.3 | H36: 1 | J36: 2.03 | K36: 0 | L36: 0 | N36: 0 | R36: 0 | S36: 0 | T36: 0 | U36: 0 | V36: 0 | X36: 0
B37: 2011-05-31 | D37: 2.03 | F37: 2.3 | H37: 1 | J37: 2.03 | K37: 0 | L37: 0 | N37: 0 | R37: 0 | S37: 0 | T37: 0 | U37: 0 | V37: 0 | X37: 0
B38: 2011-06-30 | D38: 2.03 | F38: 2.3 | H38: 1 | J38: 2.03 | K38: 0 | L38: 0 | N38: 0 | R38: 0 | S38: 0 | T38: 0 | U38: 0 | V38: 0 | X38: 0
B39: 2011-07-31 | D39: 2.03 | F39: 2.3 | H39: 1 | J39: 2.03 | K39: 0 | L39: 0 | N39: 0 | R39: 0 | S39: 0 | T39: 0 | U39: 0 | V39: 0 | X39: 0
B40: 2011-08-31 | D40: 2.03 | F40: 2.3 | H40: 1 | J40: 2.03 | K40: 0 | L40: 0 | N40: 0 | R40: 0 | S40: 0 | T40: 0 | U40: 0 | V40: 0 | X40: 0
B41: 2011-09-30 | D41: 2.03 | F41: 2.3 | H41: 1 | J41: 2.03 | K41: 0 | L41: 0 | N41: 0 | R41: 0 | S41: 0 | T41: 0 | U41: 0 | V41: 0 | X41: 0
B42: 2011-10-31 | C42: 123119 | D42: 2.03 | E42: 281402 | F42: 2.3 | G42: 148237 | H42: 1 | I42: 402538 | J42: 2.03 | K42: 955296 | L42: 917510.0049 | M42: 83549 | N42: 1038845 | O42: 333917 | P42: 9351 | R42: 0.02800396506 | S42: 343268 | T42: 332732.9 | U42: 2.6729 | V42: 2.5419 | X42: 1 | Y42: 845758.3177 | Z42: 2.541853594
B43: 2011-11-30 | C43: 114818 | D43: 2.03 | E43: 214475 | F43: 2.3 | G43: 146066 | H43: 1 | I43: 381672 | J43: 2.03 | K43: 857031 | L43: 811444.9261 | M43: 84383 | N43: 941414 | O43: 306234 | P43: 9812 | R43: 0.03204085764 | S43: 316046 | T43: 329657 | U43: 2.5675 | V43: 2.6224 | X43: 1 | Y43: 864477.4655 | Z43: 2.622354343
B44: 2011-12-31 | C44: 113758 | D44: 2.03 | E44: 243013 | F44: 2.3 | G44: 89965 | H44: 1 | I44: 369040 | J44: 2.03 | K44: 815776 | L44: 802450.6601 | M44: 83169 | N44: 898945 | O44: 321413 | P44: 9121 | R44: 0.02837781919 | S44: 330534 | T44: 329949.3333 | U44: 2.4277 | V44: 2.5574 | X44: 1 | Y44: 843801.8637 | Z44: 2.557367991
B45: 2012-01-31 | C45: 114494 | D45: 2.03 | E45: 220687 | F45: 2.3 | G45: 1731 | H45: 1 | I45: 332682 | J45: 2.03 | K45: 669594 | L45: 698068.1675 | M45: 78636 | N45: 748230 | O45: 303107 | P45: 8465 | R45: 0.02792743157 | S45: 311572 | T45: 325355 | U45: 2.2405 | V45: 2.4815 | X45: 1 | Y45: 807368.4397 | Z45: 2.481500022
B46: 2012-02-29 | C46: 114801 | D46: 2.03 | E46: 232993 | F46: 2.3 | G46: 62058 | H46: 1 | I46: 344221 | J46: 2.03 | K46: 754073 | L46: 753574.6601 | M46: 78039 | N46: 832112 | O46: 293581 | P46: 8624 | R46: 0.02937519799 | S46: 302205 | T46: 320725 | U46: 2.4936 | V46: 2.4838 | X46: 1 | Y46: 796609.6837 | Z46: 2.483777952
B47: 2012-03-31 | C47: 126574 | D47: 2.03 | E47: 241310 | F47: 2.3 | G47: 176186 | H47: 1 | I47: 399739 | J47: 2.03 | K47: 943809 | L47: 886509.5517 | M47: 92003 | N47: 1035812 | O47: 327754 | P47: 10898 | R47: 0.03325054767 | S47: 338652 | T47: 323712.8333 | U47: 2.6178 | V47: 2.5071 | X47: 1 | Y47: 811592.9951 | Z47: 2.507138771
B48: 2012-04-30 | C48: 109670 | D48: 2.03 | E48: 213877 | F48: 2.3 | G48: 153926 | H48: 1 | I48: 360309 | J48: 2.03 | K48: 837782 | L48: 788128.3103 | M48: 83876 | N48: 921658 | O48: 299461 | P48: 9896 | R48: 0.03304603938 | S48: 309357 | T48: 321662 | U48: 2.5476 | V48: 2.5127 | X48: 1 | Y48: 808240.8973 | Z48: 2.512702456
B49: 2012-05-31 | C49: 121952 | D49: 2.03 | E49: 226312 | F49: 2.3 | G49: 175312 | H49: 1 | I49: 404086 | J49: 2.03 | K49: 927662 | L49: 868811.202 | M49: 91437 | N49: 1019099 | O49: 325409 | P49: 9087 | R49: 0.02792485764 | S49: 334496 | T49: 323266.25 | U49: 2.5974 | V49: 2.5237 | X49: 1 | Y49: 815812.1853 | Z49: 2.523654063
B50: 2012-06-30 | C50: 110235 | D50: 2.03 | E50: 209395 | F50: 2.3 | G50: 147748 | H50: 1 | I50: 368096 | J50: 2.03 | K50: 835474 | L50: 788358.8325 | M50: 81012 | N50: 916486 | O50: 307422 | P50: 8466 | R50: 0.02753869274 | S50: 315888 | T50: 322446.4444 | U50: 2.4957 | V50: 2.5206 | X50: 1 | Y50: 812761.8128 | Z50: 2.52061025
B51: 2012-07-31 | C51: 115559 | D51: 2.03 | E51: 218969 | F51: 2.3 | G51: 96048 | H51: 1 | I51: 384786 | J51: 2.03 | K51: 815362 | L51: 795752.2414 | M51: 81057 | N51: 896419 | O51: 307422 | P51: 8466 | R51: 0.02753869274 | S51: 315888 | T51: 321790.6 | U51: 2.5191 | V51: 2.5205 | X51: 1 | Y51: 811060.8557 | Z51: 2.520461616
B52: 2012-08-31 | C52: 122395 | D52: 2.03 | E52: 229825 | F52: 2.3 | G52: 174809 | H52: 1 | I52: 404320 | J52: 2.03 | K52: 931349 | L52: 873220.665 | M52: 91555 | N52: 1022904 | O52: 326873 | P52: 10839 | R52: 0.03315966752 | S52: 337712 | T52: 323238 | U52: 2.5857 | V52: 2.5267 | X52: 1 | Y52: 816711.7474 | Z52: 2.526657594
B53: 2012-09-30 | C53: 105244 | D53: 2.03 | E53: 204655 | F53: 2.3 | G53: 148785 | H53: 1 | I53: 354280 | J53: 2.03 | K53: 812964 | L53: 764692.2266 | M53: 83118 | N53: 896082 | O53: 297893 | P53: 8465 | R53: 0.02841624342 | S53: 306358 | T53: 321831.3333 | U53: 2.4961 | V53: 2.5242 | X53: 1 | Y53: 812376.7874 | Z53: 2.524231494
B54: 2012-10-31 | C54: 116797 | D54: 2.03 | E54: 220817 | F54: 2.3 | G54: 167641 | H54: 1 | I54: 401655 | J54: 2.03 | K54: 906910 | L54: 851220.5222 | M54: 87859 | N54: 994769 | O54: 323920 | P54: 10015 | R54: 0.03091812793 | S54: 333935 | T54: 321053.5833 | U54: 2.5491 | V54: 2.5131 | X54: 1 | Y54: 806852.6638 | Z54: 2.513140191
B55: 2012-11-30 | C55: 108098 | D55: 2.2 | E55: 206581 | F55: 2.5 | G55: 153777 | H55: 1.1 | I55: 373290 | J55: 2.2 | K55: 841746 | L55: 793027.6364 | M55: 84585 | N55: 926331 | O55: 305611 | P55: 9199 | R55: 0.03010035634 | S55: 314810 | T55: 320950.5833 | U55: 2.5191 | V55: 2.5092 | X55: 1 | Y55: 805317.8896 | Z55: 2.509164748
B56: 2012-12-31 | C56: 94178 | D56: 2.2 | E56: 214798 | F56: 2.5 | G56: 74071 | H56: 1.1 | I56: 323586 | J56: 2.2 | K56: 706633 | L56: 698888.1364 | M56: 72680 | N56: 779313 | O56: 296397 | P56: 8462 | R56: 0.02854954672 | S56: 304859 | T56: 318811 | U56: 2.2925 | V56: 2.4989 | X56: 1 | Y56: 796687.6793 | Z56: 2.4989341
B57: 2013-01-31 | C57: 105901 | D57: 2.2 | E57: 217749 | F57: 2.5 | G57: 1934 | H57: 1.1 | I57: 331084 | J57: 2.2 | K57: 656668 | L57: 685394.0455 | M57: 72864 | N57: 729532 | O57: 308249 | P57: 8721 | R57: 0.02829206259 | S57: 316970 | T57: 319260.8333 | U57: 2.1623 | V57: 2.4921 | X57: 1 | Y57: 795631.5025 | Z57: 2.492104948
B58: 2013-02-28 | C58: 97742 | D58: 2.2 | E58: 222306 | F58: 2.5 | G58: 62139 | H58: 1.1 | I58: 328536 | J58: 2.2 | K58: 710723 | L58: 709967.9545 | M58: 70603 | N58: 781326 | O58: 278017 | P58: 9148 | R58: 0.03290446268 | S58: 287165 | T58: 318007.5 | U58: 2.4723 | V58: 2.4905 | X58: 1 | Y58: 791997.6104 | Z58: 2.490499785
B59: 2013-03-31 | C59: 219007 | D59: 2.2 | E59: 104444 | F59: 2.5 | G59: 146374 | H59: 1.1 | I59: 369407 | J59: 2.2 | K59: 839232 | L59: 780287.3636 | M59: 79148 | N59: 918380 | O59: 305141 | P59: 9084 | R59: 0.0297698441 | S59: 314225 | T59: 315971.9167 | U59: 2.4832 | V59: 2.4785 | X59: 1 | Y59: 783145.7614 | Z59: 2.478529642
B60: 2013-04-30 | C60: 111381 | D60: 2.2 | E60: 223309 | F60: 2.5 | G60: 159681 | H60: 1.1 | I60: 399302 | J60: 2.2 | K60: 893673 | L60: 844283.7273 | M60: 87009 | N60: 980682 | O60: 319719 | P60: 9708 | R60: 0.03036416353 | S60: 329427 | T60: 317644.4167 | U60: 2.5629 | V60: 2.4802 | X60: 1 | Y60: 787825.3794 | Z60: 2.48021164
B61: 2013-05-31 | C61: 211872 | D61: 2.2 | E61: 103325 | F61: 2.5 | G61: 153464 | H61: 1.1 | I61: 382756 | J61: 2.2 | K61: 851417 | L61: 788774.7727 | M61: 80963 | N61: 932380 | O61: 313949 | P61: 8566 | R61: 0.02728468637 | S61: 322515 | T61: 316646 | U61: 2.4457 | V61: =+T61/L61 -> 0.4014403236 | X61: 1 | Y61: 781155.677 | Z61: 2.466968403
N62: 0
L63: 781155.677 | S63: 316646 | U63: 2.467
C65: GRATUIDADES | E65: HABIT | G65: UTILIZADO | K65: ESTUDANTES | M65: 1 | N65: 127886.6667
C66: ACIMA 65 | E66: 10000 | G66: 51000 | I66: 5.1 | L66: ADIC | M66: 1.2 | N66: 153464
C67: ACIMA 60 | E67: 5000 | G67: 25500 | I67: 15000 | L67: ADIC | M67: 1.4 | N67: 179041.3333 | O67: 25577.33333
E68: 15000 | G68: 76500
B70: MEIDA ANUAL | C70: 126534.0833 | D70: 2.2 | E70: 198014.4167 | F70: 2.5 | G70: 123872.5833 | H70: 1.1 | I70: 368424.8333 | J70: 2.2 | K70: 816845.9167 | L70: 781911.5909 | M70: 81037.75 | N70: 897883.6667 | O70: 307551.0833 | P70: 9094.916667 | S70: 316646
B71: GRATUIDADE | D71: 2.2 | E71: -25500 | F71: 2.5 | H71: 1.1 | J71: 2.2 | K71: -25500 | L71: -28977.27273 | M71: 25500 | N71: 0
B72: PASSE 20 40 | D72: 2.2 | E72: -25577.33333 | F72: 2.5 | G72: 25577.33333 | H72: 1.1 | J72: 2.2 | K72: 0 | L72: -16276.48485 | M72: 0 | N72: 0
C73: 126534.0833 | D73: 2.2 | E73: 146937.0833 | F73: 2.5 | G73: 149449.9167 | H73: 1.1 | I73: 368424.8333 | J73: 2.2 | K73: 791345.9167 | L73: 736657.8333 | M73: 106537.75 | N73: 897883.6667 | O73: 307551.0833 | P73: 9094.916667 | S73: 316646 | T73: 316646 | U73: 2.3264
B75: MEIDA ANUAL | C75: 126534.0833 | D75: 2.2 | E75: 146937.0833 | F75: 2.4 | G75: 149449.9167 | H75: 1.1 | I75: 368424.8333 | J75: 2.2 | K75: 791345.9167 | L75: 729978.875 | N75: 897883.6667 | O75: 307551.0833 | P75: 9094.916667 | S75: 316646 | T75: 316646 | U75: 2.3053
B78: MEIDA ANUAL | C78: 126534.0833 | D78: 2.2 | E78: 146937.0833 | F78: 2.3 | G78: 149449.9167 | H78: 1.1 | I78: 368424.8333 | J78: 2.2 | K78: 791345.9167 | L78: 723299.9167 | N78: 897883.6667 | O78: 307551.0833 | P78: 9094.916667 | R78: 0.02957205212 | S78: 316646 | T78: 316646 | U78: 2.2843

Sheet APURA
L1: 2.587363371 | M1: 2.078578012 | O1: 2.779342561 | P1: 2.246022555 | R1: 2.845235054 | S1: 2.1718537 | T1: verificado
B2: PREFEITURA MUNICIPAL DE CHAPECO
B3: CONTROLADORIA GERAL DO MUNICIPIO
B5: SISTEMA DE TRANSPORTE COLETIVO URBANO DE CHAPECÓ
B7: Discriminação | I7: Referência | L7: Empresa NOV/2010 | M7: Calculo PMC NOV/2010 | O7: Empresa SET/2012 | P7: PMC SET/2012 | R7: Empresa MAI/2013 | S7: PMC MAI/2013
B9: FR | C9: FROTA
C11: FR_01 | D11: FROTA TOTAL | I11: FR_01 | J11: (IE) | L11: Quantidade | M11: Quantidade | O11: Quantidade | P11: Quantidade | R11: Quantidade | S11: Quantidade
D12: Micro | L12: 2 | M12: 2 | O12: 1 | P12: 1 | R12: 1 | S12: 1
D13: Leve | L13: 0 | M13: 0 | O13: 1 | P13: 1 | R13: 15 | S13: 15
D14: Pesado | L14: 70 | M14: 70 | O14: 66 | P14: 66 | R14: 52 | S14: 52
D15: Articulado | L15: 2 | M15: 2 | O15: 1 | P15: 1 | R15: 1 | S15: 1
D16: Total | L16: 74 | M16: 74 | O16: 69 | P16: 69 | R16: 69 | S16: 69
C18: FR_02 | D18: FROTA COMPLEMENTAR | I18: FR_02 | J18: (IE) | L18: Quantidade | M18: Quantidade | O18: Quantidade | P18: Quantidade | R18: Quantidade | S18: Quantidade
D19: Micro | L19: 0 | M19: 0 | O19: 0 | P19: 0 | R19: 0 | S19: 0
D20: Leve | L20: 0 | M20: 0 | O20: 0 | P20: 0 | R20: 0 | S20: 0
D21: Pesado | L21: 3 | M21: 3 | O21: 10 | P21: 10 | R21: 7 | S21: 7 | T21: ok
D22: Articulado | L22: 0 | M22: 0 | O22: 0 | P22: 0 | R22: 0 | S22: 0
D23: Total | L23: 3 | M23: 3 | O23: 10 | P23: 10 | R23: 7 | S23: 7
C25: FR_03 | D25: FROTA OPERANTE | I25: FR_03 | J25: ( FS) | L25: Quantidade | M25: Quantidade | O25: Quantidade | P25: Quantidade | R25: Quantidade | S25: Quantidade
D26: Micro | L26: 2 | M26: 2 | O26: 1 | P26: 1 | R26: 1 | S26: 1 | T26: ok
D27: Leve | L27: 0 | M27: 0 | O27: 1 | P27: 1 | R27: 15 | S27: 15 | T27: ok
D28: Pesado | L28: 67 | M28: 67 | O28: 56 | P28: 56 | R28: 45 | S28: 45 | T28: ok
D29: Articulado | L29: 2 | M29: 2 | O29: 1 | P29: 1 | R29: 1 | S29: 1 | T29: ok
D30: Total | L30: 71 | M30: 71 | O30: 59 | P30: 59 | R30: 62 | S30: 62
C32: FR_04 | D32: FROTA RESERVA (5%) | I32: FR_04 | J32: (IE) | L32: Quantidade | M32: Quantidade | O32: Quantidade | P32: Quantidade | R32: Quantidade | S32: Quantidade
D33: Micro | L33: 0 | M33: 0 | O33: 0 | P33: 0 | R33: 0 | S33: 0
D34: Leve | L34: 0 | M34: 0 | O34: 0 | P34: 0 | R34: 0 | S34: 0
D35: Pesado | L35: 3 | M35: 3 | O35: 10 | P35: 10 | R35: 7 | S35: 7 | T35: ok
D36: Articulado | L36: 0 | M36: 0 | O36: 0 | P36: 0 | R36: 0 | S36: 0
D37: Total | L37: 3 | M37: 3 | O37: 10 | P37: 10 | R37: 7 | S37: 7
C39: FR_05 | D39: FROTA BASE | I39: FR_05 | J39: ( FS) | L39: Quantidade | M39: Quantidade | O39: Quantidade | P39: Quantidade | R39: Quantidade | S39: Quantidade
D40: Micro | L40: 2 | M40: 2 | O40: 1 | P40: 1 | R40: 1 | S40: 1
D41: Leve | L41: 0 | M41: 0 | O41: 1 | P41: 1 | R41: 15 | S41: 15
D42: Pesado | L42: 70 | M42: 70 | O42: 66 | P42: 66 | R42: 52 | S42: 52
D43: Articulado | L43: 2 | M43: 2 | O43: 1 | P43: 1 | R43: 1 | S43: 1
D44: Total | L44: 74 | M44: 74 | O44: 69 | P44: 69 | R44: 69 | S44: 69
D46: VALOR DA FROTA
C48: FR_11 | D48: Valor - Onibus com Rodagem | I48: FR_11 | J48: (IE) | L48: Valor | M48: Valor | O48: Valor | P48: Valor | R48: Valor | S48: Valor
D49: Micro | L49: 182750.89 | M49: 182750.89 | O49: 185501.77 | P49: 185501.77 | R49: 185501.77 | S49: 185501.77 | T49: ok
D50: Leve | L50: 0 | M50: 0 | O50: 218354 | P50: 218354 | R50: 108663.6 | S50: 108663.6 | T50: ok
D51: Pesado | L51: 237994.5483 | M51: 237994.5483 | O51: 228656.42 | P51: 228656.42 | R51: 226325.65 | S51: 226325.65 | T51: ok
D52: Articulado | L52: 314282.055 | M52: 314282.055 | O52: 318564.11 | P52: 318564.11 | R52: 318564.11 | S52: 318564.11 | T52: ok
C54: FR_12 | D54: valor - Rodagem | I54: FR_12 | J54: (IE) | L54: Valor | M54: Valor | O54: Valor | P54: Valor | R54: Valor | S54: Valor
D55: Micro | L55: 4554 | M55: 4554 | O55: 4428 | P55: 4428 | R55: 5808 | S55: 5808 | T55: ok
D56: Leve | L56: 0 | M56: 0 | O56: 8850 | P56: 8850 | R56: 11160 | S56: 11160 | T56: ok
D57: Pesado | L57: 7860 | M57: 7860 | O57: 8534 | P57: 8534 | R57: 10890 | S57: 10890 | T57: ok
D58: Articulado | L58: 13500 | M58: 13500 | O58: 14190 | P58: 14190 | R58: 18150 | S58: 18150 | T58: ok
C60: FR_13 | D60: Onibus sem rodagem | I60: FR_13 | J60: (FS) | L60: Valor | M60: Valor | O60: Valor | P60: Valor | R60: Valor | S60: Valor
D61: Micro | L61: 178196.89 | M61: 178196.89 | O61: 181073.77 | P61: 181073.77 | R61: 179693.77 | S61: 179693.77
D62: Leve | L62: 0 | M62: 0 | O62: 209504 | P62: 209504 | R62: 97503.6 | S62: 97503.6
D63: Pesado | L63: 230134.5483 | M63: 230134.5483 | O63: 220122.42 | P63: 220122.42 | R63: 215435.65 | S63: 215435.65
D64: Articulado | L64: 300782.055 | M64: 300782.055 | O64: 304374.11 | P64: 304374.11 | R64: 300414.11 | S64: 300414.11
B67: KM | C67: QUILOMETRAGEM
D69: MÉDIA PERCURSO TOTAL (MÉDIA MÊS) | I69: KM_01 | L69: KM | M69: KM | O69: KM | P69: KM | R69: KM | S69: KM
L70: 408876 | M70: 408876 | O70: 306358 | P70: 306358 | R70: 322515 | S70: 316646 | T70: ok
D72: FROTA OPERANTE | I72: FR_03
L73: 71 | M73: 71 | O73: 59 | P73: 59 | R73: 62 | S73: 62
C75: KM_02 | D75: PMM - PERCURSO MÉDIO MENSAL - KM/VEICULO/MÊS | L75: KM (média) | M75: KM (média) | O75: KM (média) | P75: KM (média) | R75: KM (média) | S75: KM (média)
D76: KM_01 / FR_03 | L76: 5759 | M76: 5759 | O76: 5193 | P76: 5193 | R76: 5202 | S76: 5107
D78: MÉDIA DIA (30 dias) | L78: 192 | M78: 192 | O78: 173 | P78: 173 | R78: 173 | S78: 170
D79: VELOCIDADE MÉDIA - (6 horas dia) | L79: 19.2 | M79: 32 | O79: 28.83333333 | P79: 28.83333333 | R79: 28.83333333 | S79: 28.33333333
B81: CA | C81: CAPITAL - REMUNERAÇÃO E DEPRECIAÇÃO
C83: CA_01 | D83: REMUNERAÇÃO - TAXA ANUAL | I83: CA_01 | L83: 0.12 | M83: 0.12 | O83: 0.12 | P83: 0.12 | R83: 0.12 | S83: 0.12
C84: CA_02 | D84: REMUNERAÇÃO - TAXA MENSAL | I84: CA_02 | L84: 0.009488792935 | M84: 0.009488792935 | O84: 0.009488792935 | P84: 0.009488792935 | R84: 0.009488792935 | S84: 0.009488792935
C86: CA_11 | D86: VEICULOS
D88: FROTA BASE | J88: FR_05 | L88: Quantidade | M88: Quantidade | O88: Quantidade | P88: Quantidade | R88: Quantidade | S88: Quantidade
D89: Micro | L89: 2 | M89: 2 | O89: 1 | P89: 1 | R89: 1 | S89: 1
D90: Leve | L90: 0 | M90: 0 | O90: 1 | P90: 1 | R90: 15 | S90: 15
D91: Pesado | L91: 70 | M91: 70 | O91: 66 | P91: 66 | R91: 52 | S91: 52
D92: Articulado | L92: 2 | M92: 2 | O92: 1 | P92: 1 | R92: 1 | S92: 1
D93: Total | L93: 74 | M93: 74 | O93: 69 | P93: 69 | R93: 69 | S93: 69
D95: Valor veiculo sem rodagem | J95: FR_13 | L95: Valor | M95: Valor | O95: Valor | P95: Valor | R95: Valor | S95: Valor
D96: Micro | L96: 178196.89 | M96: 178196.89 | O96: 181073.77 | P96: 181073.77 | R96: 179693.77 | S96: 179693.77
D97: Leve | L97: 0 | M97: 0 | O97: 209504 | P97: 209504 | R97: 97503.6 | S97: 97503.6
D98: Pesado | L98: 230134.5483 | M98: 230134.5483 | O98: 220122.42 | P98: 220122.42 | R98: 215435.65 | S98: 215435.65
D99: Articulado | L99: 300782.055 | M99: 300782.055 | O99: 304374.11 | P99: 304374.11 | R99: 300414.11 | S99: 300414.11
D101: Vida útil do veiculo (anos) | J101: (IE) | L101: Anos | M101: Anos | O101: Anos | P101: Anos | R101: Anos | S101: Anos
D102: Micro | M102: 10 | P102: 10 | S102: 10 | T102: ok
D103: Leve | M103: 10 | P103: 10 | S103: 10 | T103: ok
D104: Pesado | M104: 12 | P104: 12 | S104: 12 | T104: ok
D105: Articulado | M105: 15 | P105: 15 | S105: 15 | T105: ok
D107: Valor residual do veiculo (%) | J107: (IE) | L107: % | M107: % | O107: % | P107: % | R107: % | S107: %
D108: Micro | M108: 0.1 | P108: 0.1 | S108: 0.1 | T108: ok
D109: Leve | M109: 0.1 | P109: 0.1 | S109: 0.1 | T109: ok
D110: Pesado | M110: 0.1 | P110: 0.1 | S110: 0.1 | T110: ok
D111: Articulado | M111: 0.1 | P111: 0.1 | S111: 0.1 | T111: ok
D113: Coeficiente de Amortização/Depr Mês | J113: ( FS) | L113: Coeficiente | M113: Coeficiente | O113: Coeficiente | P113: Coeficiente | R113: Coeficiente | S113: Coeficiente
D114: Micro | M114: -0.01354412494 | P114: -0.01354412494 | S114: -0.01354412494
D115: Leve | M115: -0.01354412494 | P115: -0.01354412494 | S115: -0.01354412494
D116: Pesado | M116: -0.01243768259 | P116: -0.01243768259 | S116: -0.01243768259
D117: Articulado | M117: -0.01139776535 | P117: -0.01139776535 | S117: -0.01139776535
D119: Remuneração/Depreciação do mês | J119: ( FS) | L119: Valor | M119: Valor | O119: Valor | P119: Valor | R119: Valor | S119: Valor
D120: Micro | L120: 0 | M120: -4827.041885 | O120: 0 | P120: -2452.485765 | R120: 0 | S120: -2433.794872
D121: Leve | L121: 0 | M121: 0 | O121: 0 | P121: -2837.548352 | R121: 0 | S121: -19809.01411
D122: Pesado | L122: 0 | M122: -200363.8325 | O122: 0 | P122: -180695.6442 | R122: 0 | S122: -139335.0521
D123: Articulado | L123: 0 | M123: -6856.48657 | O123: 0 | P123: -3469.184685 | R123: 0 | S123: -3424.049534
D124: TOTAL REMUNERAÇÃO/DEPRECIAÇÃO DE VEICULOS | K124: CA_11 | L124: 0 | M124: -212047.3609 | O124: 0 | P124: -189454.863 | R124: 0 | S124: -165001.9106
C126: CA_12 | D126: OUTROS EQUIPAMENTOS
D128: Valores de investimentos | E128: Inferior | F128: Vlr Uso | G128: Superior | H128: Calculo PMC | J128: (IE) | L128: Valor | M128: Valor | O128: Valor | P128: Valor | R128: Valor | S128: Valor
D129: Validadores | L129: 11980.44 | M129: 11980.44 | O129: 7952.11 | P129: 11980.44 | R129: 7952.11 | S129: 11980.44
D130: Sistema Bilhetagem Eletronica | L130: 11980.44 | M130: 11980.44 | O130: 7952.11 | P130: 11980.44 | R130: 7952.11 | S130: 11980.44
D131: Sistema de Monitoramento | E131: 825478.5 | F131: 60 | G131: 13757.975 | H131: 13757.975 | L131: 13757.98 | M131: 13757.98 | O131: 13757.98 | P131: 13757.98 | R131: 13757.98 | S131: 13757.98
D132: Maquinas Instalações e Equipamentos | E132: 0.0001 | F132: 0.0001 | G132: 0.0001 | H132: 0.0001 | L132: 1765.368427 | M132: 1765.368427 | O132: 1559.53896 | P132: 1559.53896 | R132: 1559.53896 | S132: 1559.53896
L133: 17653684.27 | M133: 17653684.27 | O133: 15595389.6 | P133: 15595389.6 | R133: 13902953.68 | S133: 13902953.68
D136: Vida útil (anos) | J136: (IE) | L136: Anos | M136: Anos | O136: Anos | P136: Anos | R136: Anos | S136: Anos
D137: Validadores | M137: 5 | P137: 5 | S137: 5
D138: Sistema Bilhetagem Eletronica | E138: 2005 | F138: 2010 | M138: 5 | P138: 5 | S138: 5
D139: Sistema de Monitoramento | E139: 2005 | F139: 2010 | M139: 5 | P139: 5 | S139: 5
D140: Maquinas Instalações e Equipamentos | M140: 5 | P140: 5 | S140: 5
D142: Valor residual (%) | J142: (IE) | L142: % | M142: % | O142: % | P142: % | R142: % | S142: %
D143: Validadores | M143: 0 | P143: 0 | S143: 0
D144: Sistema Bilhetagem Eletronica | M144: 0 | P144: 0 | S144: 0
D145: Sistema de Monitoramento | M145: 0 | P145: 0 | S145: 0
D146: Maquinas Instalações e Equipamentos | M146: 0 | P146: 0 | S146: 0
D148: Coeficiente de Amortização e Depr Mês | J148: ( FS) | L148: Coeficiente | M148: Coeficiente | O148: Coeficiente | P148: Coeficiente | R148: Coeficiente | S148: Coeficiente
D149: Validadores | M149: -0.02193569587 | P149: -0.02193569587 | S149: -0.02193569587
D150: Sistema Bilhetagem Eletronica | M150: -0.02193569587 | P150: -0.02193569587 | S150: -0.02193569587
D151: Sistema de Monitoramento | M151: -0.02193569587 | P151: -0.02193569587 | S151: -0.02193569587
D152: Maquinas Instalações e Equipamentos | M152: -0.02193569587 | P152: -0.02193569587 | S152: -0.02193569587
D154: Remuneração e Depreciação do mês | J154: ( FS) | L154: Valor | M154: Valor | O154: Valor | P154: Valor | R154: Valor | S154: Valor
D155: Validadores | L155: 0 | M155: -19447.14733 | O155: 0 | P155: -18133.15089 | R155: 0 | S155: -18133.15089
D156: Sistema Bilhetagem Eletronica | L156: 0 | M156: -19447.14733 | O156: 0 | P156: -18133.15089 | R156: 0 | S156: -18133.15089
D157: Sistema de Monitoramento | L157: 0 | M157: -22332.52402 | O157: 0 | P157: -20823.56969 | R157: 0 | S157: -20823.56969
D158: Maquinas Instalações e Equipamentos | L158: 0 | M158: -2865.619284 | O158: 0 | P158: -2360.46049 | R158: 0 | S158: -2360.46049
D159: TOTAL REMUNERAÇÃO/DEPRECIAÇÃO DE OUTROS EQUIPAMENTOS | K159: CA_12 | L159: 0 | M159: -64092.43796 | O159: 0 | P159: -59450.33196 | R159: 0 | S159: -59450.33196
C162: CA_13 | D162: OUTROS INVESTIMENTOS
D164: Valores de investimentos | G164: TOT ANOS | J164: (IE) | L164: Valor | M164: Valor | O164: Valor | P164: Valor | R164: Valor | S164: Valor
D165: Investimento Terminal e Infraestrutura | E165: AVC | F165: 2006 | G165: 20 | L165: 12056.5 | M165: 12056.5 | P165: 12056.5 | S165: 12056.5
D166: Investimento Terminal e Infraestrutura | E166: AVC | F166: 2007 | G166: 20 | L166: 138339.46 | M166: 138339.46 | P166: 138339.46 | S166: 138339.46
D167: Investimento Terminal e Infraestrutura | E167: AVC | F167: 2008 | G167: 20 | L167: 1257183.47 | M167: 1257183.47 | P167: 1257183.47 | S167: 1257183.47
D168: Investimento Terminal e Infraestrutura | E168: TTT | F168: 2006 | G168: 20 | L168: 2400 | M168: 2400 | P168: 2400 | S168: 2400
D169: Investimento Terminal e Infraestrutura | E169: TTT | F169: 2008 | G169: 20 | L169: 262227.22 | M169: 262227.22 | P169: 262227.22 | S169: 262227.22
D170: Outorga - Minima | E170: AVC | F170: 2010 | G170: 20 | L170: 4000000 | M170: 4000000 | P170: 4000000 | S170: 4000000
D171: Outorga - Minima | E171: TTT | F171: 2010 | G171: 20 | L171: 1000000 | M171: 1000000 | P171: 0 | S171: 0
D172: Outorga - Final | E172: AVC | F172: 2010 | G172: 20 | L172: 0 | M172: 0 | P172: 0 | S172: 0
D173: Outorga - Final | E173: TTT | F173: 2010 | G173: 20 | L173: 0 | M173: 0 | P173: 0 | S173: 0
D174: TOTAL | L174: 6672206.65
D176: Valores de investimentos Atualização | J176: (IE) | L176: Valor | M176: Valor | O176: Valor | P176: Valor | R176: Valor | S176: Valor
D177: Investimento Terminal e Infraestrutura | E177: AVC | F177: 2006 | G177: 0.233897332 | L177: 2820 | M177: 2820 | P177: 2820 | S177: 2820
D178: Investimento Terminal e Infraestrutura | E178: AVC | F178: 2007 | G178: 0.1775986099 | L178: 24569 | M178: 24569 | P178: 24569 | S178: 24569
D179: Investimento Terminal e Infraestrutura | E179: AVC | F179: 2008 | G179: 0.09792417607 | L179: 123109 | M179: 123109 | P179: 123109 | S179: 123109
D180: Investimento Terminal e Infraestrutura | E180: TTT | F180: 2006 | G180: 0.233897332 | L180: 561 | M180: 561 | P180: 561 | S180: 561
D181: Investimento Terminal e Infraestrutura | E181: TTT | F181: 2008 | G181: 0.09792417607 | L181: 25678 | M181: 25678 | P181: 25678 | S181: 25678
D182: Outorga - Minima | E182: AVC | F182: 2010 | L182: 0 | M182: 0 | P182: 0 | S182: 0
D183: Outorga - Minima | E183: TTT | F183: 2010 | L183: 0 | M183: 0 | P183: 0 | S183: 0
D184: Outorga - Final | E184: AVC | F184: 2010 | L184: 0 | M184: 0 | P184: 0 | S184: 0
D185: Outorga - Final | E185: TTT | F185: 2010 | L185: 0 | M185: 0 | P185: 0 | S185: 0
D186: TOTAL | L186: 176737 | M186: 176737 | P186: 176737 | S186: 176737
D188: Valores de investimentos | J188: (IE) | L188: Valor | M188: Valor | O188: Valor | P188: Valor | R188: Valor | S188: Valor
D189: Investimento Terminal e Infraestrutura | E189: AVC | F189: 2010 | G189: 4 | L189: 11901.2 | M189: 11901.2 | P189: 11901.2 | S189: 11901.2
D190: Investimento Terminal e Infraestrutura | E190: AVC | F190: 2010 | G190: 3 | L190: 138472.191 | M190: 138472.191 | P190: 138472.191 | S190: 138472.191
D191: Investimento Terminal e Infraestrutura | E191: AVC | F191: 2010 | G191: 2 | L191: 1242263.223 | M191: 1242263.223 | P191: 1242263.223 | S191: 1242263.223
D192: Investimento Terminal e Infraestrutura | E192: TTT | F192: 2010 | G192: 4 | L192: 2368.8 | M192: 2368.8
D193: Investimento Terminal e Infraestrutura | E193: TTT | F193: 2010 | G193: 2 | L193: 259114.698 | M193: 259114.698
D194: Outorga - Minima | E194: AVC | F194: 2010 | G194: 0 | L194: 4000000 | M194: 4000000 | P194: 4000000 | S194: 4000000
D195: Outorga - Minima | E195: TTT | F195: 2010 | G195: 0 | L195: 1000000 | M195: 1000000
D196: Outorga - Final | E196: AVC | F196: 2010 | G196: 0 | L196: 0 | M196: 0 | P196: 0 | S196: 0
D197: Outorga - Final | E197: TTT | F197: 2010 | G197: 0 | L197: 0 | M197: 0 | P197: 0 | S197: 0
D198: TOTAL | L198: 6654120.112 | M198: 6654120.112 | P198: 5392636.614 | S198: 5392636.614
D200: Vida útil (anos) | J200: (IE) | L200: Anos | M200: Anos | O200: Anos | P200: Anos | R200: Anos | S200: Anos
D201: Investimento Terminal e Infraestrutura | E201: AVC | F201: 2010 | G201: 0 | M201: 10 | P201: 10 | S201: 10
D202: Investimento Terminal e Infraestrutura | E202: AVC | F202: 2010 | G202: 0 | M202: 10 | P202: 10 | S202: 10
D203: Investimento Terminal e Infraestrutura | E203: AVC | F203: 2010 | G203: 0 | M203: 10 | P203: 20 | S203: 20
D204: Investimento Terminal e Infraestrutura | E204: TTT | F204: 2010 | G204: 0 | M204: 10 | P204: 20 | S204: 20
D205: Investimento Terminal e Infraestrutura | E205: TTT | F205: 2010 | G205: 0 | M205: 10 | P205: 10 | S205: 10
D206: Outorga - Minima | E206: AVC | F206: 2010 | G206: 0 | M206: 10 | P206: 10 | S206: 10
D207: Outorga - Minima | E207: TTT | F207: 2010 | G207: 0 | M207: 10 | P207: 10 | S207: 10
D208: Outorga - Final | E208: AVC | F208: 2010 | G208: 0 | M208: 10 | P208: 10 | S208: 10
D209: Outorga - Final | E209: TTT | F209: 2010 | G209: 0 | M209: 10 | P209: 10 | S209: 10
D211: Valor residual (%) | J211: (IE) | L211: % | M211: % | O211: % | P211: % | R211: % | S211: %
D212: Investimento Terminal e Infraestrutura | E212: AVC | M212: 0 | P212: 0 | S212: 0
D213: Investimento Terminal e Infraestrutura | E213: AVC | M213: 0 | P213: 0 | S213: 0
D214: Investimento Terminal e Infraestrutura | E214: AVC | M214: 0 | P214: 0 | S214: 0
D215: Investimento Terminal e Infraestrutura | E215: TTT | M215: 0 | P215: 0 | S215: 0
D216: Investimento Terminal e Infraestrutura | E216: TTT | M216: 0 | P216: 0 | S216: 0
D217: Outorga - Minima | E217: AVC | M217: 0 | P217: 0 | S217: 0
D218: Outorga - Minima | E218: TTT | M218: 0 | P218: 0 | S218: 0
D219: Outorga - Final | E219: AVC | M219: 0 | P219: 0 | S219: 0
D220: Outorga - Final | E220: TTT | M220: 0 | P220: 0 | S220: 0
D222: Coeficiente de Amortização e Depr Mês | J222: ( FS) | L222: Coeficiente | M222: Coeficiente | O222: Coeficiente | P222: Coeficiente | R222: Coeficiente | S222: Coeficiente
D223: Investimento Terminal e Infraestrutura | E223: AVC | M223: -0.01399471739 | P223: -0.01399471739 | S223: -0.01399471739
D224: Investimento Terminal e Infraestrutura | E224: AVC | M224: -0.01399471739 | P224: -0.01399471739 | S224: -0.01399471739
D225: Investimento Terminal e Infraestrutura | E225: AVC | M225: -0.01399471739 | P225: -0.01058623352 | S225: -0.01058623352
D226: Investimento Terminal e Infraestrutura | E226: TTT | M226: -0.01399471739 | P226: -0.01058623352 | S226: -0.01058623352
D227: Investimento Terminal e Infraestrutura | E227: TTT | M227: -0.01399471739 | P227: -0.01399471739 | S227: -0.01399471739
D228: Outorga - Minima | E228: AVC | M228: -0.01399471739 | P228: -0.01399471739 | S228: -0.01399471739
D229: Outorga - Minima | E229: TTT | M229: -0.01399471739 | P229: -0.01399471739 | S229: -0.01399471739
D230: Outorga - Final | E230: AVC | M230: -0.01399471739 | P230: -0.01399471739 | S230: -0.01399471739
D231: Outorga - Final | E231: TTT | M231: -0.01399471739 | P231: -0.01399471739 | S231: -0.01399471739
D233: Remuneração e Depreciação do mês | J233: ( FS) | L233: Valor | M233: Valor | O233: Valor | P233: Valor | R233: Valor | S233: Valor
D234: Investimento Terminal e Infraestrutura | E234: AVC | L234: 0 | M234: -166.5539306 | O234: 0 | P234: -166.5539306 | R234: 0 | S234: -166.5539306
D235: Investimento Terminal e Infraestrutura | E235: AVC | L235: 0 | M235: -1937.879179 | O235: 0 | P235: -1937.879179 | R235: 0 | S235: -1937.879179
D236: Investimento Terminal e Infraestrutura | E236: AVC | L236: 0 | M236: -17385.12273 | O236: 0 | P236: -13150.88857 | R236: 0 | S236: -13150.88857
D237: Investimento Terminal e Infraestrutura | E237: TTT | L237: 0 | M237: -33.15068655 | O237: 0 | P237: 0 | R237: 0 | S237: 0
D238: Investimento Terminal e Infraestrutura | E238: TTT | L238: 0 | M238: -3626.236969 | O238: 0 | P238: 0 | R238: 0 | S238: 0
D239: Outorga - Minima | E239: AVC | L239: 0 | M239: -55978.86955 | O239: 0 | P239: -55978.86955 | R239: 0 | S239: -55978.86955
D240: Outorga - Minima | E240: TTT | L240: 0 | M240: -13994.71739 | O240: 0 | P240: 0 | R240: 0 | S240: 0
D241: Outorga - Final | E241: AVC | L241: 0 | M241: 0 | O241: 0 | P241: 0 | R241: 0 | S241: 0
D242: Outorga - Final | E242: TTT | L242: 0 | M242: 0 | O242: 0 | P242: 0 | R242: 0 | S242: 0
D243: Total | K243: CA_13 | L243: 0 | M243: -93122.53043 | O243: 0 | P243: -71234.19123 | R243: 0 | S243: -71234.19123
... 248 more rows

Sheet publicar
B2: PREFEITURA MUNICIPAL DE CHAPECO
C4: RESUMO PLANILHA APURAÇÃO DE CUSTO TARIFA
C6: Discriminação | D6: NOVEMBRO DE 2010 | G6: SETEMBRO DE 2012 | J6: MAIO DE 2013
D7: AVC/TTT | E7: PMC | G7: AVC | H7: PMC | J7: AVC | K7: PMC
C9: CUSTOS DE OPERAÇÃO | D9: Custo KM | E9: Custo KM | G9: Custo KM | H9: Custo KM | J9: Custo KM | K9: Custo KM | N9: TARIFA R$
C11: FROTA BASE | D11: 74 | E11: 74 | G11: 69 | H11: 69 | J11: 69 | K11: 69
C12: MÉDIA PERCURSO TOTAL (KM MÉDIA MÊS) | D12: 408876 | E12: 408876 | G12: 306358 | H12: 306358 | J12: 322515 | K12: 316646 | M12: 0.03358162672
C13: NÚMERO DE PASSAGEIROS EQUIVALENTES | D13: 945607.5252 | E13: 973656.4188 | G13: 764700.2038 | H13: 764700.2038 | J13: 788774.7727 | K13: 752178.4043 | M13: -0.01637478251
C15: CAPITAL - REMUNERAÇÃO E DEPRECIAÇÃO | D15: 1.0146 | E15: 0.9031156862 | G15: 1.1012 | H15: 1.044984581 | J15: 0.9705 | K15: 0.9338075763 | M15: -0.1063910477 | N15: 0.3931067844
C16: Veiculos | D16: 0.6494 | E16: 0.5186104368 | G16: 0 | H16: 0.6184100398 | J16: 0 | K16: 0.5210926733 | N16: 0.2193653922
C17: Validadores, SBE, SM, Maq Equip | D17: 0.1822 | E17: 0.1567527513 | G17: 0 | H17: 0.1940550988 | J17: 0 | K17: 0.1877501436 | N17: 0.07903754165
C18: Outros investimentos | D18: 0.183 | E18: 0.2277524981 | G18: 0 | H18: 0.232519442 | J18: 0 | K18: 0.2249647595 | N18: 0.0947038506
C20: GASTOS VARIÁVEIS | D20: 1.415327738 | E20: 1.285655322 | G20: 1.539127481 | H20: 1.361256967 | J20: 1.769376249 | K20: 1.426918389 | M20: 0.04823587571 | N20: 0.6006925987
C21: Combustíveis | D21: 0.8307790541 | E21: 0.8390797297 | G21: 0.9231985507 | H21: 0.885292029 | J21: 1.158856338 | K21: 0.964673913 | N21: 0.406100646
C22: Lubrificantes | D22: 0.1053 | E22: 0.08775 | G22: 0.1113 | H22: 0.09275 | J22: 0.15051 | K22: 0.1065 | N22: 0.04483351132
C23: Rodagem | D23: 0.1353912676 | E23: 0.1179182574 | G23: 0.1381786925 | H23: 0.1264790188 | J23: 0.1385211982 | K23: 0.1295113805 | N23: 0.05452065674
C24: Peças e Acessórios | D24: 0.3438574165 | E24: 0.2409073346 | G24: 0.3664502378 | H24: 0.2567359196 | J24: 0.3214887127 | K24: 0.2262330958 | N24: 0.09523778462
C26: CUSTO DE PESSOAL | D26: 2.614681294 | E26: 2.04050318 | G26: 3.364603972 | H26: 2.355013536 | J26: 3.123526647 | K26: 2.081492594 | M26: -0.1161441059 | N26: 0.8762499697
C27: PESSOAL DIRETO
C28: Motorista | D28: 1.179849494 | E28: 0.8904524481 | G28: 1.534560704 | H28: 1.096114789 | J28: 1.394992978 | K28: 1.014892161 | N28: 0.427241119
C29: Cobrador | D29: 0.6434070277 | E29: 0.4855902096 | G29: 0.7245561445 | H29: 0.3991199101 | J29: 0.7180543162 | K29: 0.261201206 | N29: 0.1099583777
C30: Fiscal/Despachante | D30: 0.1667831268 | E30: 0.1644340687 | G30: 0.2026842999 | H30: 0.176673966 | J30: 0.140839167 | K30: 0.05949522828 | N30: 0.02504582151
C31: Bilheteiro | D31: 0.01750630324 | E31: 0.01849257384 | G31: 0.01938495985 | H31: 0.0205349151 | J31: 0.0192935328 | K31: 0.01980961329 | N31: 0.008339291283
C32: PESSOAL INDIRETO
C33: Manutenção | D33: 0.3011318927 | E33: 0.233845395 | G33: 0.3721779163 | H33: 0.253866537 | J33: 0.3409769991 | K33: 0.2033097313 | N33: 0.08558769143
C34: Pessoal administrativo | D34: 0.2609809737 | E34: 0.202666009 | G34: 0.3225541941 | H34: 0.2200176654 | J34: 0.2955133993 | K34: 0.3049645969 | N34: 0.1283815371
C35: Honorários diretoria | D35: 0.01394065683 | E35: 0.01394065683 | G35: 0.02185687986 | H35: 0.02185687986 | J35: 0.02666772088 | K35: 0.02716200426 | N35: 0.01143444155
C36: Benefícios sociais | D36: 0.03108181943 | E36: 0.03108181943 | G36: 0.1668288734 | H36: 0.1668288734 | J36: 0.1871885339 | K36: 0.1906580535 | N36: 0.08026169012
C38: DESPESAS ADMINISTRATIVAS | D38: 0.7207777077 | E38: 0.5397789305 | G38: 0.6793661446 | H38: 0.6404119799 | J38: 0.7020267068 | K38: 0.6137398967 | M38: -0.04164832016 | N38: 0.2583672733
C39: Serviços de Bilhetagem Eletrônica - SBE | D39: 0.04830860701 | E39: 0.04830860701 | G39: 0.04687463686 | H39: 0.04687463686 | J39: 0.04293964622 | K39: 0.043735528 | N39: 0.01841142995
C40: Serviços de Atendimento ao Passageiro - SAC | D40: 0 | E40: 0 | G40: 0 | H40: 0 | J40: 0 | K40: 0 | N40: 0
C41: Serviço Especial de Atendimento a PPDLSevera | D41: 0 | E41: 0 | G41: 0 | H41: 0 | J41: 0 | K41: 0 | N41: 0
C42: Serviço de Manutenção de Abrigos e Terminais | D42: 0.008783102946 | E42: 0.008783102946 | G42: 0.0005846754451 | H42: 0.0005846754451 | J42: 0.003661845185 | K42: 0.003729717097 | N42: 0.001570106232
C43: Despesas Administrativas Gerais | D43: 0.3901973948 | E43: 0.4146546875 | G43: 0.5277281808 | H43: 0.5277281808 | J43: 0.5163672387 | K43: 0.5259380507 | N43: 0.2214051601
C44: Encargos Financeiros | D44: 0.2199592444 | E44: 0.01450317456 | G44: 0.05415533461 | H44: 0.01520116987 | J44: 0.1142051067 | K44: 0.01502308572 | N44: 0.006324297498
C45: Outros custos operacionais | D45: 0.01417965349 | E45: 0.01417965349 | G45: 0.005524778201 | H45: 0.005524778201 | J45: 0.006923522937 | K45: 0.0070518497 | N45: 0.002968630829
C46: Despesa Anual c/Seguro Responsab. cívil | D46: 0.03593999159 | E46: 0.03593999159 | G46: 0.03806548765 | H46: 0.03806548765 | J46: 0.03615852493 | K46: 0.03682871935 | N46: 0.01550385733
C47: Despesa Anual com o Seguro Obrigatório | D47: 0 | E47: 0 | G47: 0.006215440759 | H47: 0.006215440759 | J47: 0.005904066478 | K47: 0.006013497723 | N47: 0.002531513786
C48: Despesas Anual com Emplacamento | D48: 0.005186943393 | E48: 0.005186943393 | G48: 0.0009520452107 | H48: 0.0009520452107 | J48: 0.000904350702 | K48: 0.0009211127463 | N48: 0.0003877626172
C49: Despesa Anual com o IPVA Por Veículo | D49: 0.0009130722599 | E49: 0.0009130722599 | G49: 0 | H49: 0 | J49: 0 | K49: 0 | N49: 0
C50: Receitas Complementar | D50: -0.002690302194 | E50: -0.002690302194 | G50: -0.0007344348768 | H50: -0.0007344348768 | J50: -0.02503759515 | K50: -0.02550166432 | N50: -0.01073548503
C52: TOTAL | D52: 5.76538674 | E52: 4.769053119 | G52: 6.684297598 | H52: 5.401667064 | J52: 6.565429603 | K52: 5.055958457 | M52: -0.06400035453 | N52: 2.128416626
C54: IMPOSTOS
C55: % DE PIS E COFINS | D55: 0.0365 | E55: 0.0365 | G55: 0.0365 | H55: 0.0365 | J55: 0.0365
C56: % DE INSS S/FATURAMENTO | D56: 0 | E56: 0 | G56: 0 | H56: 0 | J56: 0.02 | K56: 0.02
C57: Valor PIS E COFINS | D57: 0.2184085273 | E57: 0.1806647004 | G57: 0.2532193693 | H57: 0.2046298369 | J57: 0.2539885326 | K57: 0 | N57: 0
C58: Valor INSS S/FATURAMENTO | D58: 0 | E58: 0 | G58: 0 | H58: 0 | J58: 0.1391717987 | K58: 0.1031828256 | N58: 0.043437074
C60: CUSTO TOTAL POR QUILOMETRO | D60: 5.983795267 | E60: 4.949717819 | G60: 6.937516967 | H60: 5.606296901 | J60: 6.958589934 | K60: 5.159141282 | M60: -0.07975953223 | N60: 2.1718537
C63: CUSTO TOTAL POR QUILOMETRO | D63: 5.983795267 | E63: 4.949717819 | G63: 6.937516967 | H63: 5.606296901 | J63: 6.958589934 | K63: 5.159141282
C65: INDICE PASSAGEIRO QUILOMETRO | D65: 2.3127 | E65: 2.3813 | G65: 2.4961 | H65: 2.4961 | J65: 2.445699495 | K65: 2.375455254 | M65: -0.04833329845
C67: VALOR DA TARIFA CÁLCULADA | D67: 2.587363371 | E67: 2.078578012 | G67: 2.779342561 | H67: 2.246022555 | J67: 2.845235054 | K67: 2.1718537 | M67: -0.033022311 | N67: 0
C69: AUMENTO DE ESTUDANTES DE 20% - 40%
C70: MEDIA PASSAGEIROS EQUIVALENTES | K70: 752934.3182
C71: AUMENTO PASSES ESTUDANTES 20 40 | K71: -16276.48485
C72: TOTAL | K72: 736657.8333
C73: MÉDIA KM PERCORRIDOS | K73: 316646
C74: NOVO IPK | K74: 2.326439726
C76: CUSTO TOTAL POR QUILOMETRO | K76: 5.159141282
C78: VALOR DA TARIFA CÁLCULADA | K78: 2.217612271 | N78: 0.02106890098
C81: REDUÇÃO DA TARIFA EMBARCADO PARA
C82: Media Passageiros Equivalentes - Embarcado de 2,50 para 2,40 | E82: 2.4 | K82: 729978.875
C83: MÉDIA KM PERCORRIDOS | K83: 316646
C84: NOVO IPK | K84: 2.305346902
C86: CUSTO TOTAL POR QUILOMETRO | K86: 5.159141282
C88: VALOR DA TARIFA CÁLCULADA | K88: 2.237902365 | N88: 0.03041119413
